bitfinex/quotes_BTCUSD_20240703
["timestamp","ask_amount","ask_price","bid_price","bid_amount"]
[1719996963909,0.56755143,60750.0,60749.0,0.023]
[1719996964112,0.33309925,60752.0,60747.0,0.0188235]
[1719996964113,0.164614,60748.0,60747.0,0.0188235]
[1719996964439,0.164614,60748.0,60747.0,0.1602988]
[1719996964440,0.69689237,60748.0,60747.0,0.1602988]
[1719996964642,1.12998599,60748.0,60747.0,0.1602988]
[1719996964992,1.00709144,60748.0,60747.0,0.1602988]
[1719996965473,1.00709144,60748.0,60747.0,0.1632988]
[1719996965681,1.00709144,60748.0,60747.0,0.1832988]
[1719996965885,0.59770762,60748.0,60747.0,0.1832988]
[1719996966154,0.59770762,60748.0,60747.0,0.1602988]
[1719996966155,1.02523017,60748.0,60747.0,0.1602988]
[1719996966455,1.02523017,60748.0,60747.0,0.1552988]
[1719996966456,0.92693562,60748.0,60747.0,0.1552988]
[1719996966662,1.01500107,60748.0,60747.0,0.1552988]
[1719996967583,1.01380347,60748.0,60747.0,0.1552988]
[1719996967798,0.58628105,60748.0,60747.0,0.1552988]
[1719996967984,0.91550905,60748.0,60747.0,0.1572988]
[1719996968566,0.58628105,60748.0,60747.0,0.1572988]
[1719996968938,0.91550905,60748.0,60747.0,0.1572988]
[1719996969159,0.91550905,60748.0,60747.0,0.1622988]
[1719996969358,0.58628105,60748.0,60747.0,0.1622988]
[1719996969956,0.09243905,60748.0,60747.0,0.1622988]
[1719996970170,0.12286802,60750.0,60748.0,0.3]
[1719996970171,0.0491449,60750.0,60748.0,0.3]
[1719996970376,0.0491449,60751.0,60750.0,0.45178948]
[1719996970594,0.07370742,60754.0,60753.0,0.3]
[1719996970791,0.329154,60762.0,60753.0,0.3]
[1719996970792,0.0491439,60756.0,60755.0,0.15178948]
[1719996971124,0.0491417,60757.0,60755.0,0.33508828]
[1719996971328,0.0491417,60757.0,60756.0,0.1832988]
[1719996971925,0.07371255,60757.0,60756.0,0.1832988]
[1719996972031,0.07371255,60757.0,60748.0,0.008]
[1719996972032,0.164611,60749.0,60748.0,0.008]
[1719996972235,0.164611,60749.0,60748.0,0.1682988]
[1719996972236,0.493834,60749.0,60748.0,0.1682988]
[1719996972458,0.493834,60749.0,60748.0,0.1602988]
[1719996972685,0.493834,60749.0,60748.0,0.1794245]
[1719996972686,0.164611,60749.0,60748.0,0.1794245]
[1719996973652,0.164611,60749.0,60748.0,0.1924245]
[1719996974066,0.164611,60749.0,60748.0,0.2154245]
[1719996974389,0.164611,60749.0,60748.0,0.2024245]
[1719996974607,0.164611,60749.0,60748.0,0.2154245]
[1719996974608,0.23831678,60749.0,60748.0,0.2154245]
[1719996974985,0.56753978,60749.0,60748.0,0.2154245]
[1719996975378,0.58735127,60749.0,60748.0,0.2154245]
[1719996975545,0.91657427,60749.0,60748.0,0.2154245]
[1719996975751,0.91657427,60749.0,60748.0,0.1962988]
[1719996975925,1.01484864,60749.0,60748.0,0.2052988]
[1719996976303,0.91657427,60749.0,60748.0,0.2052988]
[1719996976511,0.823057,60749.0,60748.0,0.1822988]
[1719996976739,0.823057,60749.0,60748.0,0.2052988]
[1719996977004,1.55518161,60749.0,60748.0,0.022]
[1719996977174,1.89820513,60749.0,60748.0,0.022]
[1719996977586,1.73484156,60749.0,60748.0,0.022]
[1719996977843,1.58748603,60749.0,60748.0,0.022]
[1719996978576,1.64748603,60749.0,60748.0,0.022]
[1719996978777,1.90678603,60749.0,60748.0,0.022]
[1719996980057,2.23778616,60749.0,60748.0,0.022]
[1719996980522,2.17778616,60749.0,60748.0,0.022]
[1719996981361,2.17778616,60749.0,60748.0,0.009]
[1719996981873,0.493908,60740.0,60739.0,0.01952823]
[1719996982341,0.164645,60737.0,60735.0,0.575]
[1719996982571,0.164643,60738.0,60736.0,0.1832988]
[1719996983766,0.164639,60739.0,60736.0,0.1832988]
[1719996984478,0.04906019,60742.0,60736.0,0.33508828]
[1719996984709,0.164634,60741.0,60736.0,0.33508828]
[1719996984954,0.164637,60740.0,60736.0,0.33508828]
[1719996985169,0.164637,60740.0,60739.0,0.314]
[1719996985420,0.164637,60740.0,60739.0,0.1832988]
[1719996985648,0.164632,60742.0,60739.0,0.1832988]
[1719996985848,0.164633,60741.0,60740.0,0.1832988]
[1719996985999,0.37831719,60743.0,60740.0,0.1832988]
[1719996986160,0.04906019,60746.0,60742.0,0.3]
[1719996986364,0.329222,60750.0,60743.0,0.4832988]
[1719996986567,0.329222,60750.0,60745.0,0.3]
[1719996986568,0.21368398,60748.0,60745.0,0.3]
[1719996986767,0.21368098,60749.0,60746.0,0.1832988]
[1719996987006,0.04906998,60749.0,60746.0,0.1832988]
[1719996987222,0.21368098,60749.0,60746.0,0.1832988]
[1719996987424,0.21368098,60749.0,60746.0,0.4832988]
[1719996987622,0.04906998,60748.0,60746.0,0.4832988]
[1719996987825,0.04906998,60749.0,60746.0,0.4832988]
[1719996988038,0.04906998,60749.0,60747.0,0.3]
[1719996988386,0.164606,60751.0,60748.0,0.1832988]
[1719996988555,0.164606,60751.0,60748.0,0.4832988]
[1719996988964,0.01021931,60750.0,60748.0,0.4832988]
[1719996989195,0.01021931,60750.0,60748.0,0.1832988]
[1719996989523,0.164609,60750.0,60748.0,0.1832988]
[1719996989732,0.0102189,60749.0,60748.0,0.1832988]
[1719996989931,0.0102189,60749.0,60748.0,0.1852988]
[1719996990949,0.164609,60750.0,60748.0,0.1852988]
[1719996991792,0.164609,60750.0,60748.0,0.1872988]
[1719996991991,0.01021879,60749.0,60748.0,0.1872988]
[1719996992354,0.01021879,60749.0,60748.0,0.1852988]
[1719996993087,0.17482979,60749.0,60748.0,0.1852988]
[1719996993486,0.17482979,60749.0,60748.0,0.1832988]
[1719996993838,0.01021879,60749.0,60748.0,0.1872988]
[1719996994113,0.0102182,60749.0,60748.0,0.1832988]
[1719996994317,0.329204,60753.0,60748.0,0.1832988]
[1719996994318,0.1748252,60751.0,60748.0,0.1832988]
[1719996994568,0.0102182,60750.0,60748.0,0.1902988]
[1719996994766,0.0102182,60750.0,60749.0,0.00329161]
[1719996994876,0.0102182,60750.0,60749.0,0.1832988]
[1719996995081,0.0102182,60751.0,60749.0,0.4832988]
[1719996995281,0.164601,60753.0,60750.0,0.1832988]
[1719996995547,0.01021825,60752.0,60751.0,0.00329151]
[1719996995741,0.01021825,60752.0,60751.0,0.1832988]
[1719996996499,0.164598,60754.0,60751.0,0.1832988]
[1719996996699,0.01021868,60753.0,60752.0,0.1602988]
[1719996996900,0.164598,60754.0,60752.0,0.1602988]
[1719996997112,0.493801,60753.0,60752.0,0.1602988]
[1719996997514,0.2348,60755.0,60748.0,0.002]
[1719996997515,0.329207,60752.0,60748.0,0.002]
[1719996997828,0.31495582,60749.0,60746.0,0.01939233]
[1719996997992,0.3292,60748.0,60746.0,0.01939233]
[1719996998198,0.3292,60748.0,60745.0,0.000924]
[1719996998199,0.164619,60746.0,60745.0,0.000924]
[1719996998598,0.493858,60746.0,60745.0,0.000924]
[1719996998796,0.728658,60746.0,60745.0,0.000924]
[1719996999357,0.728658,60746.0,60745.0,0.02004414]
[1719997000295,0.164619,60746.0,60745.0,0.02004414]
[1719997000691,0.164616,60748.0,60745.0,0.18034294]
[1719997000872,0.329208,60752.0,60746.0,0.16359058]
[1719997001074,0.164607,60751.0,60747.0,0.023]
[1719997001295,0.164609,60750.0,60748.0,0.1602988]
[1719997001880,0.164609,60750.0,60748.0,0.4602988]
[1719997002102,0.164606,60751.0,60748.0,0.4602988]
[1719997002302,0.164607,60751.0,60748.0,0.4602988]
[1719997002544,0.164607,60751.0,60748.0,0.15489543]
[1719997002713,0.164609,60750.0,60748.0,0.15689543]
[1719997002895,0.08015582,60749.0,60748.0,0.15689543]
[1719997003084,0.08015582,60749.0,60748.0,0.17989543]
[1719997003085,0.164611,60749.0,60748.0,0.17989543]
[1719997003284,0.164611,60749.0,60748.0,0.17789543]
[1719997003736,0.164611,60749.0,60748.0,0.18189543]
[1719997004082,0.493834,60749.0,60748.0,0.18189543]
[1719997004280,0.48684375,60749.0,60748.0,0.18189543]
[1719997004922,0.48684375,60749.0,60748.0,0.18989543]
[1719997005122,0.48684375,60749.0,60748.0,0.18189543]
[1719997005486,0.48684375,60749.0,60748.0,0.18789543]
[1719997005691,0.15762075,60749.0,60748.0,0.18789543]
[1719997005899,0.15762075,60749.0,60748.0,0.19489543]
[1719997006039,0.399408,60751.0,60748.0,0.19489543]
[1719997006427,0.2348,60751.0,60748.0,0.19489543]
[1719997006668,0.2348,60751.0,60749.0,0.023]
[1719997006856,0.2348,60751.0,60750.0,0.1602988]
[1719997007048,0.2348,60751.0,60750.0,0.1832988]
[1719997007990,0.399406,60751.0,60750.0,0.1832988]
[1719997008304,0.493834,60749.0,60748.0,0.012]
[1719997008590,0.2348,60751.0,60745.0,0.02004414]
[1719997008591,0.164619,60746.0,60745.0,0.02004414]
[1719997008794,0.824758,60746.0,60745.0,0.20334294]
[1719997009082,1.397097,60746.0,60745.0,0.02004414]
[1719997009315,1.631897,60746.0,60745.0,0.02004414]
[1719997009548,1.71038733,60746.0,60745.0,0.02004414]
[1719997009686,2.03962633,60746.0,60745.0,0.02004414]
[1719997010453,2.03962633,60746.0,60745.0,0.03104414]
[1719997010575,2.04223155,60746.0,60745.0,0.03104414]
[1719997013320,1.71299255,60746.0,60745.0,0.02004414]
[1719997013651,1.38375355,60746.0,60745.0,0.02004414]
[1719997013852,1.09705052,60746.0,60745.0,0.02004414]
[1719997014050,1.09705052,60746.0,60745.0,0.03404414]
[1719997014255,0.76615052,60746.0,60745.0,0.02004414]
[1719997014475,0.03749252,60746.0,60745.0,0.18034294]
[1719997014649,0.03749252,60746.0,60745.0,0.20334294]
[1719997014650,0.12293338,60746.0,60745.0,0.20334294]
[1719997015024,0.136842,60746.0,60745.0,0.20334294]
[1719997015221,0.300461,60746.0,60745.0,0.20334294]
[1719997015596,0.300461,60746.0,60745.0,0.20434294]
[1719997015808,0.300461,60746.0,60745.0,0.02104414]
[1719997015809,0.53135052,60746.0,60745.0,0.02104414]
[1719997016422,0.65428282,60746.0,60745.0,0.02104414]
[1719997016631,1.23608282,60746.0,60745.0,0.02104414]
[1719997016838,2.38515665,60746.0,60745.0,0.001924]
[1719997017037,2.328936,60746.0,60745.0,0.001924]
[1719997017333,2.44274965,60746.0,60745.0,0.001924]
[1719997017564,2.44274965,60746.0,60745.0,0.000924]
[1719997017565,2.52717949,60746.0,60745.0,0.000924]
[1719997018843,2.52717949,60746.0,60745.0,0.004924]
[1719997019658,2.52717949,60746.0,60745.0,0.000924]
[1719997020391,2.52444391,60746.0,60745.0,0.000924]
[1719997022753,2.5236952,60746.0,60745.0,0.000924]
[1719997024549,2.4636952,60746.0,60745.0,0.000924]
[1719997024976,2.5236952,60746.0,60745.0,0.000924]
[1719997025233,2.4636952,60746.0,60745.0,0.000924]
[1719997025372,2.5236952,60746.0,60745.0,0.000924]
[1719997025973,2.50423634,60746.0,60745.0,0.000924]
[1719997026383,2.50420199,60746.0,60745.0,0.000924]
[1719997027023,2.44420199,60746.0,60745.0,0.000924]
[1719997027808,2.50420199,60746.0,60745.0,0.000924]
[1719997029061,2.46735461,60746.0,60745.0,0.000924]
[1719997029261,2.48610592,60746.0,60745.0,0.000924]
[1719997030840,2.47239492,60746.0,60745.0,0.000924]
[1719997032263,2.80163392,60746.0,60745.0,0.000924]
[1719997032668,2.94984444,60746.0,60745.0,0.000924]
[1719997033506,3.30908344,60746.0,60745.0,0.000924]
[1719997033737,3.27908344,60746.0,60745.0,0.000924]
[1719997033939,3.30908344,60746.0,60745.0,0.000924]
[1719997034142,3.30908344,60746.0,60731.0,0.468524]
[1719997034143,1.785102,60732.0,60731.0,0.000924]
[1719997034285,2.019902,60732.0,60731.0,0.000924]
[1719997034508,2.0792597,60732.0,60731.0,0.000924]
[1719997034714,2.3792597,60732.0,60731.0,0.000924]
[1719997035430,2.70388503,60732.0,60731.0,0.000924]
[1719997035846,2.649217,60732.0,60731.0,0.000924]
[1719997036037,2.649217,60732.0,60731.0,0.009924]
[1719997036038,2.7038738,60732.0,60731.0,0.009924]
[1719997036699,2.7038738,60732.0,60731.0,0.022924]
[1719997036909,3.18139932,60732.0,60731.0,0.022924]
[1719997037326,3.44800128,60732.0,60731.0,0.022924]
[1719997037527,3.215957,60732.0,60731.0,0.022924]
[1719997037723,3.450757,60732.0,60731.0,0.022924]
[1719997038092,3.47704048,60732.0,60731.0,0.009924]
[1719997038404,3.47704048,60732.0,60731.0,0.015924]
[1719997038679,3.450757,60732.0,60731.0,0.015924]
[1719997039398,3.5659511,60732.0,60731.0,0.006924]
[1719997039794,3.5689511,60732.0,60731.0,0.007924]
[1719997039995,3.5989511,60732.0,60731.0,0.007924]
[1719997040430,2.47834752,60719.0,60718.0,0.000924]
[1719997040643,2.86212172,60719.0,60718.0,0.000924]
[1719997040849,2.86554647,60719.0,60718.0,0.000924]
[1719997041158,2.63074647,60719.0,60718.0,0.000924]
[1719997041564,1.62795897,60719.0,60718.0,0.000924]
[1719997041867,1.76110146,60719.0,60718.0,0.000924]
[1719997042056,1.82403261,60719.0,60718.0,0.000924]
[1719997042262,1.72609867,60719.0,60718.0,0.000924]
[1719997042463,1.690651,60719.0,60718.0,0.000924]
[1719997042716,1.19987333,60719.0,60718.0,0.000924]
[1719997042887,0.103,60719.0,60718.0,0.000924]
[1719997043089,0.267693,60719.0,60718.0,0.000924]
[1719997043488,0.267693,60719.0,60718.0,0.001924]
[1719997043489,0.103,60719.0,60718.0,0.001924]
[1719997043692,0.103,60719.0,60718.0,0.000924]
[1719997043958,0.103,60719.0,60718.0,0.1612228]
[1719997043959,0.003,60719.0,60718.0,0.1612228]
[1719997044109,0.103,60719.0,60718.0,0.33921228]
[1719997044274,0.1,60719.0,60718.0,0.33921228]
[1719997044476,0.04894495,60730.0,60722.0,0.3]
[1719997044718,0.2,60733.0,60726.0,0.3]
[1719997044917,0.40270759,60738.0,60727.0,0.18659143]
[1719997044918,0.164653,60734.0,60727.0,0.18659143]
[1719997045134,0.164655,60733.0,60727.0,0.1832988]
[1719997045345,0.164655,60733.0,60718.0,0.469524]
[1719997045346,0.164655,60733.0,60688.0,0.07340036]
[1719997045347,0.5637,60691.0,60688.0,0.07340036]
[1719997045586,0.5637,60691.0,60684.0,0.13253809]
[1719997045587,0.5637,60691.0,60684.0,0.0120522]
[1719997045588,0.364785,60685.0,60684.0,0.0120522]
[1719997045770,0.586949,60689.0,60671.0,0.002]
[1719997045771,0.2,60677.0,60671.0,0.002]
[1719997045938,0.2,60682.0,60671.0,0.002]
[1719997046203,0.39962,60672.0,60671.0,0.002]
[1719997046424,0.729261,60672.0,60671.0,0.002]
[1719997046846,1.058902,60672.0,60671.0,0.002]
[1719997047366,0.2,60667.0,60651.0,0.20042263]
[1719997047683,0.2,60667.0,60645.0,0.0218]
[1719997047684,0.08015582,60653.0,60652.0,0.1602988]
[1719997047888,0.2348,60664.0,60654.0,0.20042263]
[1719997048126,0.2348,60664.0,60655.0,0.18707451]
[1719997048127,0.16088911,60663.0,60655.0,0.18707451]
[1719997048416,0.5818,60672.0,60652.0,0.15178948]
[1719997048417,0.2,60680.0,60667.0,0.15178948]
[1719997048635,0.04884853,60681.0,60660.0,0.0218]
[1719997048636,0.1,60679.0,60670.0,0.35221211]
[1719997048895,0.1,60679.0,60672.0,0.20042263]
[1719997049121,0.31495582,60688.0,60671.0,0.1602988]
[1719997049122,0.2,60692.0,60678.0,0.20042263]
[1719997049366,0.15957737,60699.0,60665.0,0.329676]
[1719997049367,0.06086581,60690.0,60688.0,0.20042263]
[1719997049596,0.2,60701.0,60689.0,0.1832988]
[1719997049842,0.14821052,60705.0,60689.0,0.38372143]
[1719997049843,0.06090225,60700.0,60689.0,0.38372143]
[1719997050072,0.56109076,60708.0,60689.0,0.38372143]
[1719997050073,0.00082414,60690.0,60689.0,0.38372143]
[1719997050343,0.00082414,60690.0,60689.0,0.53551091]
[1719997050810,0.00082414,60690.0,60689.0,0.72208491]
[1719997051559,0.00082414,60690.0,60689.0,0.1842988]
[1719997051811,0.00082414,60690.0,60689.0,0.1832988]
[1719997052356,0.00082414,60690.0,60689.0,0.53551091]
[1719997053278,0.00182414,60690.0,60689.0,0.34908828]
[1719997053510,0.00082414,60690.0,60689.0,0.53551091]
[1719997053983,0.00082414,60690.0,60689.0,0.34908828]
[1719997053984,0.00182414,60690.0,60689.0,0.34908828]
[1719997054222,0.00082414,60690.0,60689.0,0.53551091]
[1719997054686,0.00182414,60690.0,60689.0,0.54951091]
[1719997054945,0.00182414,60690.0,60689.0,0.56351091]
[1719997055408,0.00182414,60690.0,60689.0,0.1972988]
[1719997055630,0.00182414,60690.0,60689.0,0.1742988]
[1719997055850,0.00182414,60690.0,60689.0,0.1882988]
[1719997057084,0.00182414,60690.0,60689.0,0.2112988]
[1719997057401,0.00182414,60690.0,60689.0,0.028]
[1719997057604,1.32140283,60690.0,60689.0,0.028]
[1719997058093,1.42140283,60690.0,60689.0,0.028]
[1719997058318,0.164782,60686.0,60672.0,0.35221211]
[1719997058547,0.06092169,60685.0,60673.0,0.1602988]
[1719997058790,0.22570769,60685.0,60673.0,0.1602988]
[1719997059012,0.164786,60685.0,60673.0,0.1602988]
[1719997060194,0.10182414,60690.0,60683.0,0.15178948]
[1719997060197,0.101,60690.0,60685.0,0.35221211]
[1719997060460,0.101,60690.0,60686.0,0.1602988]
[1719997060461,0.001,60690.0,60686.0,0.1602988]
[1719997060940,0.001,60690.0,60673.0,0.330554]
[1719997060941,0.001,60690.0,60675.0,0.20042263]
[1719997060950,0.00082414,60686.0,60675.0,0.20042263]
[1719997061167,0.00082414,60686.0,60674.0,0.0448]
[1719997061168,0.00082414,60686.0,60678.0,0.20042263]
[1719997061389,0.00082414,60686.0,60679.0,0.18659391]
[1719997061645,0.00282414,60686.0,60679.0,0.18659391]
[1719997061849,0.00282414,60686.0,60679.0,0.1832988]
[1719997062053,0.00082414,60686.0,60679.0,0.1832988]
[1719997062519,0.00282414,60686.0,60679.0,0.1832988]
[1719997062731,0.00082414,60680.0,60679.0,0.1832988]
[1719997063281,0.00082414,60680.0,60679.0,0.1922988]
[1719997064093,0.00082414,60680.0,60679.0,0.2052988]
[1719997064405,0.00082414,60680.0,60679.0,0.1922988]
[1719997064828,0.00182414,60680.0,60679.0,0.2062988]
[1719997065030,0.00182414,60680.0,60679.0,0.1972988]
[1719997065437,0.00182414,60680.0,60679.0,0.2112988]
[1719997067610,0.20516976,60689.0,60679.0,0.2112988]
[1719997067780,0.06099523,60688.0,60679.0,0.2112988]
[1719997068185,0.16478,60687.0,60679.0,0.2112988]
[1719997068399,0.06099523,60686.0,60679.0,0.2112988]
[1719997068591,0.06099523,60686.0,60679.0,0.1972988]
[1719997068756,0.06099523,60685.0,60679.0,0.1972988]
[1719997068952,0.06099523,60684.0,60679.0,0.2072988]
[1719997069157,0.001,60688.0,60679.0,0.1932988]
[1719997069378,0.0609887,60687.0,60679.0,0.1932988]
[1719997069589,0.0609887,60687.0,60679.0,0.39872143]
[1719997069792,0.0609887,60687.0,60679.0,0.1982988]
[1719997069986,0.0609887,60687.0,60679.0,0.1932988]
[1719997070394,0.0609887,60687.0,60682.0,0.20042263]
[1719997070756,0.0609887,60687.0,60683.0,0.1832988]
[1719997071169,0.0619887,60687.0,60683.0,0.1832988]
[1719997071449,0.0609887,60686.0,60683.0,0.1832988]
[1719997071663,0.0619887,60686.0,60683.0,0.1832988]
[1719997071868,0.0609887,60685.0,60683.0,0.1832988]
[1719997072031,0.0609887,60684.0,60683.0,0.1832988]
[1719997072361,0.0609887,60684.0,60683.0,0.1882988]
[1719997072564,0.0609887,60686.0,60683.0,0.1882988]
[1719997072795,0.0609887,60686.0,60683.0,0.1832988]
[1719997072992,0.1,60692.0,60683.0,0.38372143]
[1719997072993,0.06094678,60685.0,60683.0,0.38372143]
[1719997073208,0.06094678,60684.0,60683.0,0.38472143]
[1719997073418,0.1,60692.0,60683.0,0.1842988]
[1719997073543,0.06092341,60691.0,60683.0,0.1832988]
[1719997073978,0.06092341,60691.0,60683.0,0.38372143]
[1719997074158,0.001,60686.0,60683.0,0.1892988]
[1719997074336,0.1,60692.0,60683.0,0.1832988]
[1719997074337,0.06092341,60685.0,60683.0,0.1832988]
[1719997074533,0.1,60692.0,60683.0,0.1832988]
[1719997074534,0.06092341,60684.0,60683.0,0.1832988]
[1719997074792,0.06092341,60691.0,60683.0,0.1832988]
[1719997075013,0.06092341,60690.0,60683.0,0.1832988]
[1719997075254,0.06092341,60689.0,60683.0,0.1832988]
[1719997075430,0.06092341,60688.0,60686.0,0.20042263]
[1719997075640,0.1,60694.0,60690.0,0.20042263]
[1719997075842,0.262,60700.0,60693.0,0.20042263]
[1719997076058,0.262,60700.0,60694.0,0.16359344]
[1719997076255,0.3105,60702.0,60694.0,0.18659344]
[1719997076668,0.2462,60704.0,60694.0,0.18659344]
[1719997076669,0.2462,60704.0,60696.0,0.20042263]
[1719997076814,0.3024,60709.0,60694.0,0.1832988]
[1719997076815,0.2,60707.0,60698.0,0.20042263]
[1719997077016,0.2,60707.0,60699.0,0.1602988]
[1719997077217,0.2,60707.0,60700.0,0.023]
[1719997077419,0.5024,60709.0,60701.0,0.1602988]
[1719997077627,0.002,60709.0,60702.0,0.02629417]
[1719997077918,0.002,60709.0,60703.0,0.1602988]
[1719997078102,0.001,60707.0,60704.0,0.023]
[1719997078309,0.011,60707.0,60705.0,0.1602988]
[1719997078515,0.011,60707.0,60706.0,0.023]
[1719997078734,0.011,60707.0,60706.0,0.1832988]
[1719997078938,0.001,60707.0,60706.0,0.1832988]
[1719997079237,0.001,60707.0,60706.0,0.18659278]
[1719997079439,0.001,60707.0,60706.0,0.1832988]
[1719997079777,0.006,60709.0,60706.0,0.1832988]
[1719997079995,0.007,60709.0,60707.0,0.1602988]
[1719997080262,0.007,60709.0,60708.0,0.023]
[1719997080389,0.007,60709.0,60708.0,0.38372143]
[1719997080589,0.006,60709.0,60708.0,0.38372143]
[1719997081242,0.002,60709.0,60708.0,0.38372143]
[1719997081467,0.002,60709.0,60708.0,0.53551091]
[1719997082655,0.002,60709.0,60708.0,0.70023291]
[1719997082888,0.002,60709.0,60708.0,1.35912291]
[1719997083336,0.002,60709.0,60708.0,1.02967791]
[1719997083582,0.002,60709.0,60708.0,1.35912291]
[1719997083813,0.002,60709.0,60708.0,1.02967791]
[1719997084265,0.002,60709.0,60708.0,1.36512291]
[1719997084670,0.002,60709.0,60708.0,1.35912291]
[1719997084874,0.002,60709.0,60708.0,1.38092291]
[1719997085092,0.002,60709.0,60708.0,1.39492291]
[1719997085509,0.002,60709.0,60708.0,1.44982291]
[1719997086302,0.002,60709.0,60708.0,1.43582291]
[1719997086505,0.002,60709.0,60708.0,1.44482291]
[1719997086706,0.002,60709.0,60708.0,1.11537791]
[1719997086908,0.002,60709.0,60708.0,1.10637791]
[1719997087109,0.002,60709.0,60708.0,1.44982291]
[1719997087848,0.002,60709.0,60708.0,1.13437791]
[1719997087989,0.002,60709.0,60708.0,0.64021091]
[1719997088194,0.002,60709.0,60708.0,0.62621091]
[1719997088516,0.002,60709.0,60708.0,0.61221091]
[1719997088682,0.002,60709.0,60708.0,0.64567237]
[1719997089306,0.002,60709.0,60708.0,0.19376026]
[1719997089514,0.002,60709.0,60708.0,0.1742988]
[1719997090134,0.16672,60709.0,60708.0,0.1882988]
[1719997090336,0.55616,60709.0,60708.0,0.014]
[1719997090544,0.9856,60709.0,60708.0,0.014]
[1719997090748,0.9856,60709.0,60708.0,0.028]
[1719997090957,0.102,60709.0,60708.0,0.028]
[1719997091159,0.102,60709.0,60708.0,0.014]
[1719997091593,0.26672,60709.0,60708.0,0.023]
[1719997092001,0.26672,60709.0,60708.0,0.009]
[1719997092414,0.26672,60709.0,60708.0,0.021]
[1719997092819,0.26672,60709.0,60708.0,0.009]
[1719997093021,0.102,60709.0,60708.0,0.1692988]
[1719997093165,0.102,60709.0,60708.0,0.1982988]
[1719997093372,0.26672,60709.0,60708.0,0.1982988]
[1719997093773,0.42629737,60709.0,60708.0,0.1982988]
[1719997093972,0.75657737,60709.0,60708.0,0.1982988]
[1719997094200,0.597,60709.0,60708.0,0.1982988]
[1719997094919,0.92644,60709.0,60708.0,0.1982988]
[1719997096513,0.92644,60709.0,60708.0,0.1922988]
[1719997097165,0.92644,60709.0,60708.0,0.1942988]
[1719997097507,0.92644,60709.0,60708.0,0.1852988]
[1719997097701,0.92644,60709.0,60708.0,0.1902988]
[1719997098356,0.92644,60709.0,60708.0,0.1852988]
[1719997098887,0.92644,60709.0,60708.0,0.1922988]
[1719997099203,0.92644,60709.0,60708.0,0.1982988]
[1719997101225,0.597,60709.0,60708.0,0.1982988]
[1719997103090,0.92644,60709.0,60708.0,0.1982988]
[1719997105475,1.25588,60709.0,60708.0,0.015]
[1719997105753,1.26608153,60709.0,60708.0,0.015]
[1719997106171,0.93664153,60709.0,60708.0,0.015]
[1719997106507,0.93664159,60709.0,60708.0,0.015]
[1719997107290,0.92644,60709.0,60708.0,0.015]
[1719997108249,0.93664143,60709.0,60708.0,0.015]
[1719997110348,0.93664143,60709.0,60708.0,0.1752988]
[1719997112714,1.01679846,60709.0,60708.0,0.015]
[1719997113148,1.17637583,60709.0,60708.0,0.015]
[1719997114040,0.99664264,60709.0,60708.0,0.015]
[1719997114234,0.93664264,60709.0,60708.0,0.015]
[1719997115592,0.99664264,60709.0,60708.0,0.015]
[1719997115806,0.98644,60709.0,60708.0,0.015]
[1719997116014,0.99664244,60709.0,60708.0,0.015]
[1719997116215,0.93664244,60709.0,60708.0,0.015]
[1719997116412,0.93664216,60709.0,60708.0,0.015]
[1719997116767,0.93664216,60709.0,60708.0,0.003024]
[1719997118855,0.92644,60709.0,60708.0,0.003024]
[1719997119030,0.93664236,60709.0,60708.0,0.003024]
[1719997121464,1.17154236,60709.0,60708.0,0.003024]
[1719997122076,1.17154268,60709.0,60708.0,0.003024]
[1719997124606,1.17154268,60709.0,60708.0,0.1633228]
[1719997125402,1.3311196,60709.0,60708.0,0.1633228]
[1719997125603,1.3311196,60709.0,60708.0,0.003024]
[1719997125604,1.32091737,60709.0,60708.0,0.003024]
[1719997125802,1.38014094,60709.0,60708.0,0.003024]
[1719997126905,1.70958094,60709.0,60708.0,0.003024]
[1719997127127,1.66055949,60709.0,60708.0,0.003024]
[1719997127333,2.97290532,60709.0,60708.0,0.003024]
[1719997127539,2.87486242,60709.0,60708.0,0.003024]
[1719997127971,2.87486242,60709.0,60708.0,0.003948]
[1719997128460,2.74629737,60709.0,60708.0,0.003948]
[1719997128667,2.88812788,60709.0,60708.0,0.003948]
[1719997128881,2.74629737,60709.0,60708.0,0.003948]
[1719997129082,2.90174234,60709.0,60708.0,0.003948]
[1719997129276,2.90174234,60709.0,60708.0,0.000924]
[1719997129676,2.90174234,60709.0,60708.0,0.002924]
[1719997130052,2.90174234,60709.0,60708.0,0.000924]
[1719997130456,2.90574234,60709.0,60708.0,0.006924]
[1719997130869,3.05395286,60709.0,60708.0,0.001924]
[1719997131229,3.05195286,60709.0,60708.0,0.000924]
[1719997131432,3.01533127,60709.0,60708.0,0.000924]
[1719997131630,3.23011629,60709.0,60708.0,0.000924]
[1719997132267,3.0830569,60709.0,60708.0,0.000924]
[1719997132933,3.0870569,60709.0,60708.0,0.000924]
[1719997133143,3.0870569,60709.0,60686.0,0.0549]
[1719997133144,0.164779,60687.0,60686.0,0.0549]
[1719997133344,0.50912473,60687.0,60686.0,0.17562473]
[1719997133708,1.16824273,60687.0,60686.0,0.17562473]
[1719997134277,1.2172958,60687.0,60686.0,0.17562473]
[1719997134467,1.2172958,60687.0,60686.0,0.18962473]
[1719997134667,1.32815976,60687.0,60686.0,0.1742988]
[1719997135469,1.32815976,60687.0,60686.0,0.1882988]
[1719997135470,1.42915976,60687.0,60686.0,0.1882988]
[1719997135897,1.54637043,60687.0,60686.0,0.1882988]
[1719997136231,1.59539652,60687.0,60686.0,0.014]
[1719997136476,1.59539652,60687.0,60686.0,0.121]
[1719997136674,1.46036245,60687.0,60686.0,0.121]
[1719997136879,1.48488558,60687.0,60686.0,0.121]
[1719997137289,1.38679306,60687.0,60686.0,0.114]
[1719997137445,1.54537043,60687.0,60686.0,0.102]
[1719997137656,1.54544344,60687.0,60686.0,0.102]
[1719997137876,1.54644344,60687.0,60686.0,0.112]
[1719997138132,1.41403337,60687.0,60686.0,0.112]
[1719997138360,1.5946485,60687.0,60686.0,0.1]
[1719997138817,1.6067258,60687.0,60686.0,0.1]
[1719997139216,1.55773705,60687.0,60686.0,0.105]
[1719997139693,1.55773705,60687.0,60686.0,0.107]
[1719997139896,1.39815968,60687.0,60686.0,0.107]